bitfinex-derivatives/quotes_BTCF0:USTF0_20260314
["timestamp","ask_amount","ask_price","bid_price","bid_amount"]
[1773508037749,3e-08,70705.0,70702.0,0.04242]
[1773508037951,0.0014,70708.0,70702.0,0.04242]
[1773508038251,0.01265,70708.0,70702.0,0.04242]
[1773508041460,0.01265,70708.0,70700.0,0.042422]
[1773508045466,0.02203428,70707.0,70690.0,0.01125]
[1773508046960,0.042418,70706.0,70693.0,0.042426]
[1773508047868,0.042418,70706.0,70694.0,0.042425]
[1773508049176,0.02203428,70707.0,70694.0,0.042425]
[1773508049970,0.02203428,70706.0,70694.0,0.042425]
[1773508058570,0.02203428,70706.0,70690.0,0.01125]
[1773508058769,0.06445228,70706.0,70692.0,0.042426]
[1773508059175,0.042419,70705.0,70692.0,0.042426]
[1773508060075,0.04242,70704.0,70692.0,0.042426]
[1773508063385,0.04242,70703.0,70692.0,0.042426]
[1773508063581,0.0014,70702.0,70692.0,0.042426]
[1773508063879,0.0014,70702.0,70693.0,0.042426]
[1773508065180,0.042419,70705.0,70693.0,0.042426]
[1773508065375,0.0014,70701.0,70693.0,0.042426]
[1773508068383,0.0014,70701.0,70689.0,0.01884514]
[1773508068384,0.0014,70701.0,70694.0,0.042425]
[1773508073772,0.0014,70701.0,70695.0,0.042424]
[1773508075693,0.053667,70708.0,70696.0,0.05328821]
[1773508075889,0.0014,70707.0,70696.0,0.05328821]
[1773508076090,0.0014,70707.0,70696.0,0.042423]
[1773508077682,0.02107455,70706.0,70694.0,0.042425]
[1773508077883,0.02107455,70705.0,70692.0,0.042426]
[1773508078787,0.02107455,70705.0,70693.0,0.042426]
[1773508080890,0.06349355,70705.0,70693.0,0.042426]
[1773508081086,0.02107455,70702.0,70682.0,0.01125]
[1773508081291,0.02107455,70699.0,70684.0,0.042431]
[1773508081487,0.02107455,70697.0,70684.0,0.042431]
[1773508081687,0.0014,70696.0,70684.0,0.042431]
[1773508084189,0.043825,70696.0,70684.0,0.042431]
[1773508087088,0.0014,70696.0,70684.0,0.042431]
[1773508106122,0.0014,70696.0,70680.0,0.00835121]
[1773508106316,0.042427,70691.0,70680.0,0.05078421]
[1773508107626,0.0014,70690.0,70680.0,0.00835121]
[1773508116728,0.0014,70690.0,70678.0,0.042434]
[1773508140955,0.0014,70690.0,70679.0,0.042434]
[1773508141245,0.01125,70697.0,70688.0,0.042428]
[1773508141549,0.0014,70696.0,70688.0,0.042428]
[1773508142251,0.0014,70695.0,70688.0,0.042428]
[1773508142450,0.0014,70694.0,70688.0,0.042428]
[1773508142749,0.01125,70697.0,70687.0,0.042429]
[1773508142949,0.0014,70696.0,70687.0,0.042429]
[1773508143149,0.0014,70696.0,70688.0,0.042429]
[1773508143449,0.0014,70695.0,70688.0,0.042429]
[1773508143747,0.0014,70694.0,70688.0,0.042429]
[1773508143942,0.01125,70697.0,70688.0,0.042429]
[1773508144249,0.0014,70696.0,70688.0,0.042429]
[1773508144452,0.0014,70695.0,70688.0,0.042429]
[1773508144748,0.01125,70697.0,70688.0,0.042429]
[1773508145248,0.0014,70696.0,70688.0,0.042429]
[1773508145641,0.0014,70695.0,70688.0,0.042429]
[1773508145842,0.01125,70697.0,70688.0,0.042429]
[1773508146037,0.0014,70696.0,70688.0,0.042429]
[1773508146253,0.01125,70697.0,70688.0,0.042429]
[1773508146448,0.0014,70695.0,70688.0,0.042429]
[1773508146745,0.01125,70697.0,70688.0,0.042429]
[1773508146946,0.0014,70696.0,70688.0,0.042429]
[1773508147451,0.0014,70695.0,70688.0,0.042429]
[1773508147852,0.0014,70694.0,70688.0,0.042429]
[1773508148351,0.0014,70693.0,70688.0,0.042429]
[1773508148853,0.01125,70697.0,70688.0,0.042429]
[1773508149051,0.0014,70696.0,70688.0,0.042429]
[1773508149648,0.01125,70697.0,70688.0,0.042429]
[1773508149848,0.0014,70696.0,70688.0,0.042429]
[1773508150156,0.01125,70697.0,70688.0,0.042429]
[1773508150341,0.0014,70696.0,70688.0,0.042429]
[1773508150854,0.0014,70695.0,70688.0,0.042429]
[1773508151156,0.01125,70697.0,70688.0,0.042429]
[1773508151348,0.0014,70696.0,70688.0,0.042429]
[1773508151853,0.0014,70695.0,70688.0,0.042429]
[1773508152156,0.01125,70697.0,70688.0,0.042429]
[1773508152456,0.0014,70696.0,70688.0,0.042429]
[1773508152656,0.01125,70697.0,70688.0,0.042429]
[1773508152956,0.0014,70696.0,70688.0,0.042429]
[1773508153151,0.01125,70697.0,70688.0,0.042429]
[1773508153455,0.0014,70696.0,70688.0,0.042429]
[1773508153655,0.01125,70697.0,70688.0,0.042429]
[1773508153858,0.0014,70696.0,70688.0,0.042429]
[1773508154352,0.0014,70695.0,70688.0,0.042429]
[1773508154855,0.0014,70694.0,70688.0,0.042429]
[1773508155157,0.0014,70694.0,70680.0,0.07392685]
[1773508155158,0.01125,70697.0,70680.0,0.07392685]
[1773508155356,0.07392685,70740.0,70690.0,0.07392685]
[1773508155357,0.042415,70712.0,70690.0,0.07392685]
[1773508155556,0.043815,70711.0,70690.0,0.0738822]
[1773508156258,0.042415,70711.0,70690.0,0.0738822]
[1773508156463,0.0014,70710.0,70690.0,0.0738822]
[1773508156959,0.0014,70710.0,70697.0,0.042423]
[1773508159762,0.043816,70710.0,70697.0,0.042423]
[1773508161062,0.01125,70711.0,70699.0,0.042422]
[1773508161262,0.0014,70710.0,70699.0,0.042422]
[1773508161662,0.01125,70711.0,70699.0,0.042422]
[1773508161858,0.0014,70710.0,70699.0,0.042422]
[1773508162362,0.043816,70710.0,70697.0,0.042423]
[1773508179968,0.0014,70710.0,70690.0,0.0738822]
[1773508180174,0.02040558,70719.0,70700.0,0.0738822]
[1773508180483,0.042413,70715.0,70703.0,0.042419]
[1773508180684,0.0014,70714.0,70703.0,0.042419]
[1773508181384,0.0014,70714.0,70707.0,0.01125]
[1773508182082,0.01125,70710.0,70707.0,0.01125]
[1773508182278,0.0014,70714.0,70707.0,0.01125]
[1773508182584,0.0014,70713.0,70707.0,0.01125]
[1773508182774,0.0014,70713.0,70703.0,0.042419]
[1773508184682,0.0014,70713.0,70706.0,0.01125]
[1773508187278,0.0014,70712.0,70706.0,0.01125]
[1773508187585,0.0014,70711.0,70706.0,0.01125]
[1773508187782,0.0014,70710.0,70706.0,0.01125]
[1773508187983,0.0014,70709.0,70706.0,0.01125]
[1773508188186,0.042413,70715.0,70706.0,0.01125]
[1773508188384,0.0014,70714.0,70706.0,0.01125]
[1773508201197,0.042413,70715.0,70706.0,0.01125]
[1773508201398,0.0014,70714.0,70706.0,0.01125]
[1773508205291,0.042413,70715.0,70706.0,0.01125]
[1773508205488,0.0014,70714.0,70706.0,0.01125]
[1773508206202,0.4663547,70723.0,70710.0,0.042415]
[1773508206404,0.0014,70722.0,70710.0,0.042415]
[1773508207700,0.4239467,70724.0,70710.0,0.042415]
[1773508208003,0.042409,70722.0,70710.0,0.042415]
[1773508209705,0.042409,70722.0,70708.0,0.042416]
[1773508212223,0.02009281,70722.0,70706.0,0.053668]
[1773508212416,0.04241,70719.0,70707.0,0.042417]
[1773508214115,0.042409,70721.0,70706.0,0.01125]
[1773508214515,0.02145038,70723.0,70706.0,0.01125]
[1773508216115,0.04241,70720.0,70708.0,0.042416]
[1773508217623,0.042409,70722.0,70709.0,0.042416]
[1773508217825,0.042409,70721.0,70709.0,0.042416]
[1773508223028,0.04241,70720.0,70709.0,0.042416]
[1773508226027,0.0014,70723.0,70709.0,0.042416]
[1773508226228,0.042408,70724.0,70711.0,0.042415]
[1773508226530,0.0014,70722.0,70711.0,0.042415]
[1773508227926,0.01125,70725.0,70710.0,0.07387589]
[1773508228131,0.01265,70725.0,70714.0,0.042413]
[1773508228325,0.0014,70724.0,70714.0,0.042413]
[1773508228923,0.042406,70726.0,70714.0,0.042413]
[1773508229130,0.0014,70725.0,70714.0,0.042413]
[1773508230533,0.0014,70725.0,70712.0,0.042414]
[1773508230734,0.043807,70725.0,70712.0,0.042414]
[1773508236137,0.01125,70734.0,70716.0,0.042411]
[1773508236330,0.042405,70728.0,70716.0,0.042411]
[1773508240138,0.0014,70727.0,70716.0,0.042411]
[1773508240534,0.042405,70728.0,70716.0,0.042411]
[1773508240731,0.01125,70734.0,70710.0,0.07387589]
[1773508240732,0.0014,70727.0,70710.0,0.07387589]
[1773508241630,0.0014,70726.0,70710.0,0.07387589]
[1773508241935,0.0014,70726.0,70716.0,0.042412]
[1773508242136,0.0014,70725.0,70716.0,0.042412]
[1773508242533,0.042405,70729.0,70716.0,0.042412]
[1773508242734,0.0014,70724.0,70716.0,0.042412]
[1773508251147,0.0014,70724.0,70717.0,0.042411]
[1773508251646,0.042405,70729.0,70717.0,0.042411]
[1773508251846,0.0014,70728.0,70717.0,0.042411]
[1773508252147,0.042405,70729.0,70717.0,0.042411]
[1773508252338,0.0014,70728.0,70717.0,0.042411]
[1773508252642,0.042405,70729.0,70717.0,0.042411]
[1773508252846,0.0014,70728.0,70717.0,0.042411]
[1773508253246,0.0014,70727.0,70717.0,0.042411]
[1773508253645,0.042405,70729.0,70717.0,0.042411]
[1773508253846,0.0014,70728.0,70717.0,0.042411]
[1773508254248,0.0014,70727.0,70717.0,0.042411]
[1773508254751,0.0014,70726.0,70717.0,0.042411]
[1773508255147,0.042405,70729.0,70717.0,0.042411]
[1773508255448,0.0014,70728.0,70717.0,0.042411]
[1773508255642,0.042405,70729.0,70717.0,0.042411]
[1773508255842,0.0014,70728.0,70717.0,0.042411]
[1773508256145,0.042405,70729.0,70717.0,0.042411]
[1773508256344,0.0014,70728.0,70717.0,0.042411]
[1773508256745,0.0014,70727.0,70717.0,0.042411]
[1773508256949,0.042405,70729.0,70717.0,0.042411]
[1773508257248,0.0014,70728.0,70717.0,0.042411]
[1773508257646,0.0014,70727.0,70717.0,0.042411]
[1773508257848,0.0014,70727.0,70718.0,0.042411]
[1773508258043,0.0431099,70731.0,70718.0,0.042411]
[1773508258244,0.0014,70726.0,70718.0,0.042411]
[1773508258549,0.042404,70730.0,70718.0,0.042411]
[1773508258741,0.0014,70725.0,70718.0,0.042411]
[1773508259050,0.042404,70730.0,70718.0,0.042411]
[1773508259245,0.0014,70724.0,70718.0,0.042411]
[1773508259446,0.0007069,70731.0,70710.0,0.07387589]
[1773508259650,0.00988295,70728.0,70712.0,0.0014]
[1773508259952,0.00988295,70728.0,70722.0,0.042408]
[1773508260451,0.0014,70728.0,70722.0,0.042408]
[1773508269470,0.0014,70728.0,70723.0,0.042407]
[1773508269667,0.00988295,70728.0,70712.0,0.0014]
[1773508270975,0.00988295,70728.0,70723.0,0.042408]
[1773508275976,0.00988295,70728.0,70706.0,0.01125]
[1773508275977,0.042411,70717.0,70706.0,0.00543294]
[1773508276177,0.042415,70712.0,70699.0,0.042422]
[1773508276388,0.07387589,70710.0,70700.0,0.042421]
[1773508276591,0.0014,70711.0,70700.0,0.042421]
[1773508277699,0.0014,70711.0,70704.0,0.01125]
[1773508277888,0.54846809,70737.0,70704.0,0.01125]
[1773508277889,0.0014,70712.0,70704.0,0.01125]
[1773508278088,0.00988295,70712.0,70704.0,0.01125]
[1773508278594,0.0014,70711.0,70704.0,0.01125]
[1773508278806,0.0014,70710.0,70704.0,0.01125]
[1773508278993,0.0014,70710.0,70705.0,0.042418]
[1773508279396,0.0014,70710.0,70703.0,0.04242]
[1773508279595,0.0014,70710.0,70704.0,0.042419]
[1773508280494,0.042412,70717.0,70704.0,0.042419]
[1773508280695,0.0014,70716.0,70704.0,0.042419]
[1773508281098,0.00848295,70712.0,70704.0,0.042419]
[1773508281492,0.00848295,70712.0,70703.0,0.01125]
[1773508281493,0.0014,70711.0,70706.0,0.042418]
[1773508281697,0.01125,70722.0,70704.0,0.00067027]
[1773508281899,0.0014,70721.0,70704.0,0.00067027]
[1773508282597,0.01125,70722.0,70704.0,0.00067027]
[1773508282799,0.0014,70721.0,70712.0,0.042414]
[1773508283196,0.0014,70720.0,70712.0,0.042414]
[1773508283700,0.0014,70719.0,70712.0,0.042414]
[1773508285801,0.0014,70719.0,70710.0,0.042415]
[1773508285999,0.0014,70719.0,70711.0,0.042415]
[1773508289003,0.0014,70719.0,70712.0,0.042414]
[1773508297812,0.0014,70719.0,70710.0,0.042415]
[1773508298111,0.0014,70719.0,70711.0,0.042415]
[1773508299314,0.0014,70719.0,70712.0,0.042414]
[1773508304018,0.0014,70718.0,70703.0,0.01125]
[1773508305019,0.020276,70725.0,70703.0,0.01125]
[1773508305210,0.0014,70720.0,70703.0,0.01125]
[1773508306019,0.20852301,70719.0,70712.0,0.042414]
[1773508306215,0.20852301,70718.0,70703.0,0.01125]
[1773508306414,0.20852301,70717.0,70703.0,0.01125]
[1773508306614,0.20852301,70716.0,70703.0,0.01125]
[1773508306815,1e-08,70715.0,70703.0,0.01125]
[1773508307016,0.0014,70720.0,70712.0,0.042414]
[1773508307417,0.0014,70720.0,70710.0,0.042415]
[1773508308919,0.0014,70720.0,70711.0,0.042415]
[1773508312021,0.0014,70720.0,70703.0,0.01125]
[1773508312022,0.02151094,70720.0,70703.0,0.01125]
[1773508312217,0.02011094,70719.0,70705.0,0.042418]
[1773508314119,0.06252194,70719.0,70705.0,0.042418]
[1773508318726,0.20116878,70718.0,70705.0,0.042418]
[1773508318928,0.20116878,70717.0,70705.0,0.042418]
[1773508319226,0.20116878,70716.0,70705.0,0.042418]
[1773508319426,0.20116878,70715.0,70705.0,0.042418]
[1773508319629,0.20116878,70714.0,70705.0,0.042418]
[1773508319826,0.20256878,70713.0,70705.0,0.042418]
[1773508320025,0.20116878,70712.0,70705.0,0.042418]
[1773508320226,0.20116878,70711.0,70705.0,0.042418]
[1773508320426,0.20116878,70710.0,70705.0,0.042418]
[1773508320626,0.20116878,70709.0,70705.0,0.042418]
[1773508320828,0.20116878,70708.0,70703.0,0.05367]
[1773508321023,0.0014,70713.0,70682.0,0.00377501]
[1773508321024,0.0200726,70705.0,70682.0,0.00377501]
[1773508321222,0.0200726,70705.0,70694.0,0.042425]
[1773508321223,0.20116878,70704.0,70694.0,0.042425]
[1773508321428,0.20256878,70703.0,70683.0,0.0014]
[1773508321626,0.20116878,70702.0,70684.0,0.00377501]
[1773508321828,0.20116878,70701.0,70684.0,0.00377501]
[1773508322029,0.20116878,70700.0,70695.0,0.042424]
[1773508322330,0.0014,70703.0,70695.0,0.042424]
[1773508322331,0.20116878,70699.0,70695.0,0.042424]
[1773508322524,0.20116878,70698.0,70692.0,0.01125]
[1773508322725,7.8e-07,70697.0,70692.0,0.01125]
[1773508322931,0.0014,70699.0,70692.0,0.01125]
[1773508323132,0.0014,70699.0,70693.0,0.042426]
[1773508326221,0.042418,70707.0,70693.0,0.042426]
[1773508326426,0.0014,70706.0,70693.0,0.042426]
[1773508328328,0.0014,70706.0,70694.0,0.042425]
[1773508334335,0.0014,70706.0,70695.0,0.042424]
[1773508342742,0.0014,70706.0,70692.0,0.02280657]
[1773508343039,0.0014,70706.0,70690.0,0.01125]
[1773508343040,0.01125,70710.0,70691.0,0.02280657]
[1773508343341,0.0014,70709.0,70699.0,0.042422]
[1773508343540,0.0014,70709.0,70699.0,0.06388406]
[1773508343745,0.0014,70708.0,70699.0,0.06388406]
[1773508344243,0.0014,70707.0,70699.0,0.06388406]
[1773508344943,0.042415,70712.0,70699.0,0.06388406]
[1773508345142,0.0014,70711.0,70699.0,0.06388406]
[1773508345339,0.0014,70711.0,70697.0,0.042423]
[1773508345642,0.0014,70710.0,70697.0,0.042423]
[1773508345838,0.0014,70709.0,70697.0,0.042423]
[1773508348246,0.0014,70709.0,70691.0,0.02063493]
[1773508348247,0.0014,70709.0,70698.0,0.042423]
[1773508356062,0.0014,70709.0,70699.0,0.042422]
[1773508356261,0.0014,70708.0,70700.0,0.01553974]
[1773508356663,0.042415,70712.0,70700.0,0.01553974]
[1773508356865,0.0014,70711.0,70700.0,0.01553974]
[1773508357058,0.043815,70711.0,70700.0,0.01553974]
[1773508357258,0.042415,70711.0,70700.0,0.01553974]
[1773508357459,0.0014,70710.0,70700.0,0.01553974]
[1773508357764,0.042415,70711.0,70700.0,0.01553974]
[1773508357960,0.0014,70709.0,70700.0,0.01553974]
[1773508358366,0.0014,70708.0,70700.0,0.01553974]
[1773508358763,0.042415,70711.0,70700.0,0.01553974]
[1773508358963,0.0014,70710.0,70700.0,0.01553974]
[1773508359266,0.042415,70711.0,70700.0,0.01553974]
[1773508359468,0.0014,70710.0,70700.0,0.01553974]
[1773508359967,0.0014,70709.0,70700.0,0.01553974]
[1773508360168,0.043817,70709.0,70697.0,0.042423]
[1773508360369,0.0014,70708.0,70697.0,0.042423]
[1773508364074,0.042417,70707.0,70695.0,0.042424]
[1773508371877,0.0014,70708.0,70696.0,0.042424]
[1773508372078,0.0014,70708.0,70690.0,0.08515492]
[1773508372273,0.0014,70708.0,70691.0,0.01144201]
[1773508373072,0.0014,70708.0,70696.0,0.042424]
[1773508374280,0.0014,70708.0,70697.0,0.042423]
[1773508392392,0.043817,70708.0,70697.0,0.042423]
[1773508392588,0.042418,70707.0,70692.0,0.00594326]
[1773508392889,0.042418,70707.0,70695.0,0.042424]
[1773508397592,0.01125,70718.0,70690.0,0.08515492]
[1773508397593,0.0014,70717.0,70701.0,0.0053521]
[1773508397793,0.0014,70716.0,70701.0,0.0053521]
[1773508398092,0.01125,70718.0,70697.0,0.07390492]
[1773508398292,0.0014,70717.0,70698.0,0.0051441]
[1773508398594,0.01125,70718.0,70698.0,0.0051441]
[1773508398794,0.0014,70717.0,70698.0,0.0051441]
[1773508398996,0.01125,70718.0,70705.0,0.042418]
[1773508399186,0.0014,70717.0,70705.0,0.042418]
[1773508399497,0.01125,70718.0,70705.0,0.042418]
[1773508399699,0.0014,70717.0,70705.0,0.042418]
[1773508400198,0.0014,70716.0,70705.0,0.042418]
[1773508400397,0.01125,70718.0,70704.0,0.00542753]
[1773508400588,0.01125,70718.0,70698.0,0.0056376]
[1773508400898,0.0014,70721.0,70698.0,0.0056376]
[1773508401101,0.0014,70720.0,70698.0,0.00535582]
[1773508401295,0.0014,70719.0,70701.0,0.00535582]
[1773508401488,0.042407,70725.0,70701.0,0.00535582]
[1773508401689,0.0014,70724.0,70701.0,0.00535582]
[1773508401894,0.0014,70723.0,70703.0,0.00522855]
[1773508402094,0.0014,70723.0,70712.0,0.042414]
[1773508402294,0.042407,70725.0,70712.0,0.042414]
[1773508402498,0.0014,70724.0,70712.0,0.042414]
[1773508402909,0.0014,70723.0,70712.0,0.042414]
[1773508403311,0.042407,70725.0,70712.0,0.042414]
[1773508403511,0.0014,70722.0,70712.0,0.042414]
[1773508403712,0.0014,70722.0,70708.0,0.00522855]
[1773508403907,0.0014,70721.0,70713.0,0.042414]
[1773508404416,0.0014,70720.0,70713.0,0.042414]
[1773508406016,0.053657,70726.0,70710.0,0.07385868]
[1773508406017,0.01125,70726.0,70710.0,0.0777959]
[1773508406313,0.0014,70725.0,70716.0,0.042412]
[1773508406507,0.0014,70725.0,70712.0,0.00393722]
[1773508406508,0.01125,70726.0,70717.0,0.042411]
[1773508406714,0.01125,70726.0,70712.0,0.00393722]
[1773508407214,0.0014,70725.0,70711.0,0.00499083]
[1773508407509,0.01125,70726.0,70715.0,0.042412]
[1773508407813,0.0014,70725.0,70715.0,0.042412]
[1773508408117,0.0014,70724.0,70715.0,0.042412]
[1773508408318,0.0014,70724.0,70711.0,0.00499083]
[1773508408519,0.042405,70729.0,70715.0,0.042412]
[1773508408816,0.0014,70728.0,70715.0,0.042412]
[1773508409018,0.043805,70728.0,70715.0,0.042412]
[1773508409809,0.042406,70726.0,70713.0,0.042414]
[1773508416821,0.042406,70726.0,70709.0,0.0014]
[1773508417125,0.042405,70728.0,70715.0,0.042412]
[1773508417321,0.0014,70727.0,70715.0,0.042412]
[1773508417623,0.0014,70726.0,70716.0,0.00479439]
[1773508418020,0.042405,70728.0,70716.0,0.00479439]
[1773508418220,0.0014,70727.0,70716.0,0.00479439]
[1773508418523,0.042405,70728.0,70716.0,0.00479439]
[1773508418725,0.0014,70727.0,70716.0,0.00479439]
[1773508419030,0.042405,70728.0,70716.0,0.00479439]
[1773508419231,0.0014,70727.0,70716.0,0.00479439]
[1773508419427,0.0014,70730.0,70716.0,0.00479439]
[1773508419628,0.0014,70729.0,70716.0,0.00479439]
[1773508421231,0.0007069,70731.0,70716.0,0.00479439]
[1773508421530,0.0007069,70731.0,70718.0,0.04241]
[1773508421531,0.0014,70730.0,70718.0,0.04241]
[1773508429639,0.0007069,70731.0,70710.0,0.07385868]
[1773508429930,0.0014,70730.0,70723.0,0.042408]
[1773508431436,0.0014,70730.0,70718.0,0.04241]
[1773508431638,0.0014,70730.0,70719.0,0.04241]
[1773508433636,0.0014,70730.0,70720.0,0.042409]
[1773508434849,0.0431099,70731.0,70720.0,0.042409]
[1773508435138,0.0014,70729.0,70710.0,0.07385868]
[1773508435343,0.0007069,70731.0,70711.0,0.00436921]
[1773508435831,0.0007069,70731.0,70711.0,0.00469809]
[1773508436431,0.0014,70730.0,70711.0,0.00469809]
[1773508437139,0.0014,70730.0,70721.0,0.042409]
[1773508438540,0.0014,70730.0,70722.0,0.042408]
[1773508438748,0.0014,70730.0,70723.0,0.042407]
[1773508439038,0.0014,70730.0,70724.0,0.00403336]
[1773508439539,0.0021069,70731.0,70724.0,0.00403336]
[1773508439835,0.0014,70730.0,70724.0,0.00403336]
[1773508440140,0.0007069,70731.0,70724.0,0.00403336]
[1773508440342,0.0014,70730.0,70723.0,0.042407]
[1773508440642,0.0007069,70731.0,70723.0,0.042407]
[1773508440835,0.0014,70730.0,70723.0,0.042407]
[1773508441139,0.0007069,70731.0,70723.0,0.042407]
[1773508441334,0.0014,70730.0,70723.0,0.042407]
[1773508441639,0.0007069,70731.0,70723.0,0.042407]
[1773508441839,0.0014,70730.0,70723.0,0.042407]
[1773508442739,0.0007069,70731.0,70723.0,0.042407]
[1773508442943,0.0014,70730.0,70723.0,0.042407]
[1773508443854,0.0021069,70731.0,70723.0,0.042407]
[1773508444743,0.0007069,70731.0,70723.0,0.042407]
[1773508444942,0.0021069,70731.0,70723.0,0.042407]
[1773508445747,0.0007069,70731.0,70723.0,0.042407]
[1773508445934,0.0021069,70731.0,70721.0,0.042409]
[1773508455240,0.0021069,70731.0,70721.0,0.05066612]
[1773508456343,0.0014,70730.0,70721.0,0.05066612]
[1773508457443,0.0332606,70733.0,70721.0,0.05066612]
[1773508457647,0.0014,70732.0,70721.0,0.05066612]
[1773508460453,0.0014,70731.0,70723.0,0.00644957]
[1773508461056,0.042401,70735.0,70723.0,0.00644957]
[1773508461359,0.0014,70731.0,70723.0,0.00644957]
[1773508461951,0.0014,70731.0,70713.0,0.0014]
[1773508462152,0.0014,70731.0,70721.0,0.042409]
[1773508463561,0.042402,70734.0,70721.0,0.042409]
[1773508463760,0.0014,70733.0,70721.0,0.042409]
[1773508464062,0.042402,70734.0,70721.0,0.042409]
[1773508464257,0.0014,70733.0,70721.0,0.042409]
[1773508464657,0.0014,70732.0,70721.0,0.042409]
[1773508466060,0.0014,70732.0,70722.0,0.042408]
[1773508470471,0.0014,70732.0,70723.0,0.042407]
[1773508483485,0.0014,70732.0,70724.0,0.042407]
[1773508484184,0.0014,70732.0,70723.0,0.00301499]
[1773508484185,0.4663447,70739.0,70723.0,0.00301499]
[1773508484385,0.0014,70738.0,70723.0,0.00301499]
[1773508484686,0.4239467,70740.0,70728.0,0.042404]
[1773508484887,0.0014,70739.0,70728.0,0.042404]
[1773508485286,0.4239467,70742.0,70728.0,0.042404]
[1773508485489,0.0014,70741.0,70728.0,0.042404]
[1773508485883,0.0014,70740.0,70728.0,0.042404]
[1773508486089,0.043798,70740.0,70728.0,0.042404]
[1773508486290,0.042398,70740.0,70728.0,0.042404]
[1773508486492,0.0014,70739.0,70728.0,0.042404]
[1773508486990,0.0014,70738.0,70728.0,0.042404]
[1773508487385,0.042398,70740.0,70728.0,0.042404]
[1773508487386,0.0014,70737.0,70728.0,0.042404]
[1773508487890,0.0014,70736.0,70728.0,0.042404]
[1773508488490,0.0014,70736.0,70726.0,0.04460223]
[1773508488691,0.0014,70735.0,70726.0,0.04460223]
[1773508489086,0.0014,70734.0,70727.0,0.00185216]
[1773508490994,0.042399,70739.0,70727.0,0.00185216]
[1773508491196,0.0014,70738.0,70727.0,0.00185216]
[1773508491490,0.042399,70739.0,70727.0,0.00185216]
[1773508491697,0.0014,70738.0,70727.0,0.00185216]
[1773508491993,0.042399,70739.0,70727.0,0.00185216]
[1773508492189,0.0014,70738.0,70727.0,0.00185216]
[1773508492600,0.0014,70737.0,70727.0,0.00185216]
[1773508492991,0.042399,70739.0,70727.0,0.00185216]
[1773508493197,0.0014,70738.0,70727.0,0.00185216]
[1773508493695,0.0014,70737.0,70727.0,0.00185216]
[1773508494092,0.042399,70738.0,70727.0,0.00185216]
[1773508494290,0.0014,70736.0,70727.0,0.00185216]
[1773508494692,0.0014,70735.0,70727.0,0.00185216]
[1773508494888,0.042397,70741.0,70728.0,0.042405]
[1773508495094,0.0014,70735.0,70728.0,0.042405]
[1773508495491,0.0014,70736.0,70728.0,0.042405]
[1773508496198,0.0014,70737.0,70728.0,0.042405]
[1773508496496,0.0014,70736.0,70728.0,0.042405]
[1773508496901,0.042398,70741.0,70728.0,0.042405]
[1773508497094,0.0014,70740.0,70728.0,0.042405]
[1773508497397,0.042398,70741.0,70728.0,0.042405]
[1773508497597,0.0014,70740.0,70728.0,0.042405]
[1773508497986,0.042398,70741.0,70728.0,0.042405]
[1773508498200,0.0014,70739.0,70728.0,0.042405]
[1773508498498,0.042398,70741.0,70728.0,0.042405]
[1773508498693,0.0014,70738.0,70728.0,0.042405]
[1773508498995,0.042398,70741.0,70728.0,0.042405]
[1773508499196,0.2014,70740.0,70720.0,0.07384153]
[1773508499396,0.0014,70738.0,70730.0,0.042403]
[1773508500001,0.0014,70740.0,70730.0,0.042403]
[1773508500191,0.2,70739.0,70730.0,0.042403]
[1773508502597,0.2,70739.0,70731.0,0.042403]
[1773508502803,0.0014,70738.0,70731.0,0.042403]
[1773508503003,0.2,70739.0,70731.0,0.042403]
[1773508503204,0.2014,70739.0,70731.0,0.042403]
[1773508503592,0.2,70739.0,70731.0,0.042403]
[1773508503796,0.2,70739.0,70721.0,0.0014]
[1773508503797,0.0014,70739.0,70732.0,0.05307672]
[1773508504204,0.042395,70744.0,70732.0,0.05307672]
[1773508504402,0.2014,70743.0,70732.0,0.05307672]
[1773508504605,0.2014,70743.0,70732.0,0.042402]
[1773508505010,0.0014,70742.0,70732.0,0.042402]
[1773508505498,0.2,70743.0,70732.0,0.042402]
[1773508505697,0.0014,70742.0,70732.0,0.042402]
[1773508506100,0.2,70743.0,70732.0,0.042402]
[1773508506101,0.0014,70741.0,70732.0,0.042402]
[1773508506298,0.0014,70741.0,70733.0,0.042401]
[1773508506500,0.2,70740.0,70733.0,0.042401]
[1773508506694,0.0014,70740.0,70733.0,0.042401]
[1773508507011,0.2,70745.0,70733.0,0.042401]
[1773508507206,0.0014,70744.0,70733.0,0.042401]
[1773508507508,0.2,70745.0,70733.0,0.042401]
[1773508507701,0.0014,70744.0,70733.0,0.042401]
[1773508508207,0.0014,70743.0,70733.0,0.042401]
[1773508508605,0.0014,70742.0,70733.0,0.042401]
[1773508513806,0.2,70741.0,70733.0,0.042401]
[1773508519613,0.0014,70742.0,70733.0,0.042401]
[1773508519813,0.2,70741.0,70733.0,0.042401]
[1773508526316,0.0014,70740.0,70733.0,0.042401]
[1773508526616,0.2,70741.0,70733.0,0.042401]
[1773508526918,0.0014,70740.0,70733.0,0.042401]
[1773508527116,0.2,70741.0,70733.0,0.042401]
[1773508527415,0.0014,70740.0,70733.0,0.042401]
[1773508527612,0.2,70741.0,70733.0,0.042401]
[1773508527813,0.0014,70740.0,70733.0,0.042401]
[1773508528111,0.2,70741.0,70733.0,0.042401]
[1773508528317,0.0014,70740.0,70733.0,0.042401]
[1773508528620,0.2,70741.0,70733.0,0.042401]
[1773508528809,0.0014,70740.0,70733.0,0.042401]
[1773508529610,0.2,70741.0,70733.0,0.042401]
[1773508529810,0.0014,70740.0,70733.0,0.042401]
[1773508530119,0.2,70741.0,70733.0,0.042401]
[1773508530324,0.0014,70740.0,70733.0,0.042401]